bitfinex/quotes_ETHUSD_20251212
["timestamp","ask_amount","ask_price","bid_price","bid_amount"]
[1765554473557,0.601,3111.1,3110.2,3.78722731]
[1765554473758,3.81530721,3111.1,3110.2,3.78722731]
[1765554473972,1.35012096,3111.1,3110.3,0.572]
[1765554474380,1.0627,3111.1,3110.3,0.572]
[1765554475469,7.49129705,3111.1,3110.3,0.572]
[1765554475671,0.4617,3111.0,3110.3,0.572]
[1765554475869,3.21450384,3110.9,3110.3,0.572]
[1765554476071,0.1806,3110.4,3110.3,0.572]
[1765554476470,0.6423,3110.4,3110.3,0.572]
[1765554477066,17.592307,3110.3,3109.2,0.572]
[1765554477272,1.8234607,3110.2,3109.2,7.00446495]
[1765554477597,0.4617,3110.2,3109.2,0.572]
[1765554477791,0.4617,3110.1,3109.2,0.572]
[1765554477958,3.6770358,3110.1,3109.2,3.78825241]
[1765554478295,0.1806,3110.4,3109.2,7.00451382]
[1765554478477,3.85733189,3110.4,3109.2,7.00451382]
[1765554478786,4.24306508,3110.4,3109.2,7.00451382]
[1765554478988,0.6423,3110.4,3109.2,7.00451382]
[1765554479195,0.1806,3110.8,3109.2,13.43703664]
[1765554479396,0.601,3111.1,3109.4,0.405504]
[1765554479762,0.601,3111.1,3109.6,0.405504]
[1765554479961,0.601,3111.1,3109.9,0.405504]
[1765554480261,0.601,3111.1,3110.1,0.405504]
[1765554480591,0.601,3111.1,3111.0,0.093]
[1765554480791,4.27699719,3111.1,3110.1,0.093]
[1765554480972,4.27699719,3111.1,3110.2,0.571]
[1765554480973,0.42769972,3111.0,3110.2,0.571]
[1765554481359,0.601,3111.1,3110.2,0.571]
[1765554481576,0.601,3111.1,3110.3,0.03215123]
[1765554481776,0.601,3111.1,3111.0,0.093]
[1765554482074,0.001,3111.7,3111.1,0.98597929]
[1765554482299,0.001,3111.7,3111.4,0.58047529]
[1765554482498,0.001,3111.7,3111.2,0.795504]
[1765554482701,0.001,3111.7,3111.4,0.98597929]
[1765554482886,0.001,3111.7,3111.3,0.39]
[1765554483191,0.001,3111.7,3111.4,0.39]
[1765554483404,0.001,3111.7,3111.5,23.449183]
[1765554483607,1e-08,3112.7,3112.6,0.1015]
[1765554483784,1e-08,3112.7,3112.6,0.571]
[1765554484106,1e-08,3112.7,3112.6,4.57825218]
[1765554484309,1e-08,3112.7,3112.6,5.53233568]
[1765554484489,1e-08,3112.7,3112.6,5.93783968]
[1765554484686,0.1806,3114.6,3112.6,5.93783968]
[1765554484687,0.1806,3115.6,3113.8,0.093]
[1765554484886,0.1806,3115.6,3113.9,0.571]
[1765554485077,0.6,3116.1,3114.2,0.58047529]
[1765554485279,1.0617,3116.1,3114.3,0.76375784]
[1765554485481,1.0617,3116.1,3113.9,0.571]
[1765554485482,0.1806,3114.3,3112.8,0.093]
[1765554485677,22.756691,3115.9,3113.0,0.405504]
[1765554485916,0.1806,3114.7,3113.1,0.58047529]
[1765554486098,0.1806,3114.7,3113.1,0.96947529]
[1765554486301,0.6423,3114.7,3113.1,0.96947529]
[1765554486516,0.6423,3114.7,3113.1,0.58047529]
[1765554486721,0.4617,3114.6,3113.1,1.98055696]
[1765554486918,0.4617,3114.6,3113.0,9.63700608]
[1765554487218,0.1806,3114.7,3113.2,7.05710311]
[1765554487516,0.4617,3114.9,3113.1,0.389]
[1765554487723,3.67094261,3116.0,3113.6,0.58047529]
[1765554488031,8.985757,3115.9,3113.7,6.99322638]
[1765554488320,3.907228,3115.8,3113.7,10.20483957]
[1765554488523,2.930531,3115.7,3113.7,10.20483957]
[1765554488735,0.4617,3115.6,3113.9,0.58047529]
[1765554488886,0.4617,3116.0,3114.0,0.57]
[1765554489118,0.4617,3116.0,3114.1,0.98597929]
[1765554489356,0.4617,3116.0,3114.1,1.47647929]
[1765554489527,0.4617,3116.0,3114.1,0.1015]
[1765554489727,0.4617,3116.0,3114.2,0.794504]
[1765554489954,0.4617,3116.0,3114.4,0.98597929]
[1765554490322,0.6,3116.1,3114.6,0.405504]
[1765554490537,1.0617,3116.1,3114.5,0.389]
[1765554490722,1.0617,3116.1,3114.6,0.405504]
[1765554491042,0.6,3116.1,3114.8,0.405504]
[1765554491245,0.6,3116.1,3115.3,0.98597929]
[1765554491448,0.6,3116.1,3114.9,0.57]
[1765554491449,0.6,3116.1,3115.4,0.57]
[1765554491758,0.6,3116.1,3115.5,0.98597929]
[1765554491932,0.6,3116.1,3115.7,0.58047529]
[1765554492253,0.6,3116.1,3115.6,10.01796392]
[1765554492470,0.001,3117.4,3115.8,0.405504]
[1765554492792,0.001,3117.4,3115.7,0.96947529]
[1765554492793,0.001,3117.4,3116.2,0.405504]
[1765554492923,0.001,3117.4,3116.3,0.57]
[1765554493126,0.001,3117.4,3117.3,0.0973]
[1765554493326,0.001,3117.4,3117.3,0.6673]
[1765554493754,0.001,3117.4,3117.3,0.57]
[1765554493957,0.001,3117.4,3117.3,3.77790427]
[1765554495457,0.001,3117.4,3117.3,0.57]
[1765554496027,0.001,3117.4,3117.3,3.77790427]
[1765554496244,0.001,3117.4,3117.3,4.74737956]
[1765554496448,0.1806,3119.7,3117.9,0.093]
[1765554496682,0.1806,3119.7,3117.4,0.794504]
[1765554496883,0.4617,3119.6,3117.4,0.58047529]
[1765554497086,0.4617,3119.6,3117.6,0.405504]
[1765554497294,0.4617,3119.6,3117.8,0.405504]
[1765554497592,0.1895,3120.1,3118.3,0.58047529]
[1765554497782,0.1895,3120.1,3118.4,0.569]
[1765554497982,0.4913,3120.2,3118.8,8.43710966]
[1765554498190,0.1895,3120.5,3118.9,1.42418626]
[1765554498374,0.1806,3120.9,3119.1,0.58047529]
[1765554498579,0.1806,3120.9,3119.4,9.01758495]
[1765554498772,0.4913,3121.2,3119.4,9.01758495]
[1765554498773,0.6808,3121.2,3119.4,9.01758495]
[1765554498977,0.1895,3121.2,3119.6,2.070943]
[1765554499172,0.1895,3121.2,3118.9,0.84371097]
[1765554499173,3.461136,3121.0,3118.6,0.58047529]
[1765554499386,0.1895,3119.6,3118.9,0.569]
[1765554499898,0.1895,3120.1,3118.9,0.569]
[1765554500197,0.1895,3120.1,3119.0,9.61846743]
[1765554500364,0.1895,3120.1,3118.9,0.569]
[1765554500365,0.4635,3120.0,3118.9,0.569]
[1765554500568,0.4635,3120.0,3117.9,0.569]
[1765554500569,0.1984,3119.0,3117.9,0.569]
[1765554500826,0.1984,3119.0,3116.4,0.0973]
[1765554500827,6.465947,3118.9,3116.4,0.0973]
[1765554501110,0.4635,3118.8,3117.4,6.41560274]
[1765554501398,0.4635,3118.8,3117.5,0.569]
[1765554502099,3.20656704,3118.6,3117.5,0.569]
[1765554502295,0.4635,3118.8,3117.5,6.98439694]
[1765554502498,0.4635,3118.8,3117.6,0.69843969]
[1765554503079,0.1984,3119.0,3117.6,0.69843969]
[1765554503403,0.1984,3119.1,3117.6,1.66821498]
[1765554503707,0.4635,3119.4,3117.7,0.794804]
[1765554504001,0.4635,3119.4,3117.9,12.8291478]
[1765554504212,0.4635,3119.9,3118.0,1.86659746]
[1765554504516,0.4635,3120.0,3118.3,0.405504]
[1765554504680,0.4635,3120.0,3118.4,0.568]
[1765554504877,0.4635,3120.0,3118.5,0.405504]
[1765554505284,0.4635,3120.0,3118.4,0.568]
[1765554505483,0.4635,3120.0,3118.5,0.405504]
[1765554505683,0.4635,3120.0,3118.4,0.568]
[1765554506099,0.38580255,3119.9,3118.5,6.41333974]
[1765554506317,6.716335,3119.8,3118.5,6.41333974]
[1765554506485,6.716335,3119.8,3118.4,0.568]
[1765554506486,0.1984,3118.6,3118.4,0.568]
[1765554506885,0.6619,3118.6,3118.4,3.77467998]
[1765554507411,0.4635,3119.1,3118.4,6.98145268]
[1765554507709,0.1984,3119.0,3118.4,6.98145268]
[1765554508115,0.4635,3120.0,3118.6,9.61970112]
[1765554508318,0.4635,3120.0,3118.6,12.82626816]
[1765554509283,0.4635,3120.0,3118.6,9.61970112]
[1765554509644,0.4635,3120.0,3118.6,6.41313408]
[1765554509782,0.1984,3120.5,3118.7,2.10670487]
[1765554510121,0.001,3120.7,3119.6,0.405504]
[1765554510324,0.001,3120.7,3119.7,0.568]
[1765554510619,0.4645,3120.7,3119.7,0.568]
[1765554511416,0.4645,3120.7,3118.6,3.20654403]
[1765554511417,0.1984,3119.8,3118.2,3.20696919]
[1765554511662,0.1984,3119.8,3119.0,3.20607668]
[1765554511865,0.4635,3119.7,3119.2,6.4118261]
[1765554512032,0.1984,3120.2,3119.2,6.4118261]
[1765554512235,0.1984,3120.2,3119.2,9.61777634]
[1765554512545,0.4635,3120.1,3119.1,0.568]
[1765554512749,0.38668525,3120.0,3119.1,0.568]
[1765554513081,0.38668525,3120.0,3119.1,3.77396958]
[1765554513229,0.4635,3119.9,3119.1,0.568]
[1765554513862,0.4635,3119.9,3119.1,3.77404298]
[1765554514161,0.4635,3119.9,3119.1,6.980096]
[1765554514460,0.4635,3119.9,3119.1,3.77404298]
[1765554514662,0.4635,3119.9,3119.1,10.18614902]
[1765554514860,0.1984,3120.2,3119.1,11.20476392]
[1765554515248,0.1984,3120.2,3119.1,0.568]
[1765554515249,0.4635,3120.1,3119.1,0.568]
[1765554515451,0.58047529,3119.9,3118.0,0.567]
[1765554515651,0.58047529,3119.7,3118.0,0.567]
[1765554515863,0.58047529,3119.6,3118.0,0.567]
[1765554516054,7.443841,3119.5,3118.0,0.567]
[1765554516259,0.58047529,3119.1,3118.1,3.20705806]
[1765554516442,4.6350459,3119.4,3118.0,0.567]
[1765554516443,4.51809383,3119.4,3118.0,10.18851791]
[1765554516643,16.61827,3118.9,3118.0,0.567]
[1765554516846,0.4635,3118.8,3118.0,3.77418409]
[1765554517034,0.4635,3118.8,3118.0,6.98136818]
[1765554517365,0.4635,3118.8,3118.0,10.18855227]
[1765554517567,0.6619,3120.2,3118.2,0.405504]
[1765554517765,0.1984,3120.2,3118.4,0.98597929]
[1765554517966,0.6619,3120.2,3118.4,0.43757172]
[1765554518266,0.001,3120.7,3118.4,0.43757172]
[1765554518267,0.001,3120.7,3119.4,0.405504]
[1765554518580,0.001,3120.7,3119.6,0.405504]
[1765554518938,0.001,3120.7,3119.5,0.567]
[1765554519174,0.05969101,3122.1,3119.5,0.567]
[1765554519362,0.98597929,3121.5,3119.5,0.567]
[1765554519551,4.423955,3121.3,3119.5,0.567]
[1765554519878,6.77141,3120.9,3119.5,0.567]
[1765554520082,0.98597929,3120.8,3119.5,0.567]
[1765554520394,0.1857,3121.5,3118.9,3.20617623]
[1765554520682,10.556997,3121.1,3119.5,6.41128384]
[1765554520891,1.0556997,3121.0,3119.5,6.41128384]
[1765554521207,0.4635,3121.3,3119.6,0.567]
[1765554521381,0.4635,3121.3,3119.7,0.405504]
[1765554521550,0.4635,3121.3,3119.7,0.4739]
[1765554522189,0.4635,3121.3,3119.6,1.14747529]
[1765554522375,0.4635,3121.3,3119.7,9.61630926]
[1765554522569,0.4635,3121.3,3119.7,6.41087284]
[1765554522570,0.58047529,3120.9,3119.7,6.41087284]
[1765554522768,0.58047529,3120.9,3119.6,0.567]
[1765554522769,4.829653,3120.7,3119.6,0.567]
[1765554522973,0.1857,3119.8,3119.4,3.20567164]
[1765554523174,0.6492,3120.7,3118.9,0.567]
[1765554523373,0.4635,3120.6,3119.6,6.41106541]
[1765554523594,0.4635,3120.6,3119.6,9.61660458]
[1765554524190,0.1857,3120.7,3119.6,9.61660458]
[1765554524392,0.1857,3120.7,3119.7,0.567]
[1765554524393,0.6492,3120.7,3119.7,0.567]
[1765554524561,0.6492,3120.7,3118.5,0.405504]
[1765554524562,8.42363425,3120.4,3117.4,3.20770772]
[1765554524767,8.42363425,3120.2,3117.5,0.567]
[1765554525076,0.58047529,3120.3,3116.9,6.41661787]
[1765554525077,0.98597929,3118.9,3116.9,6.41661787]
[1765554525264,0.58047529,3119.9,3116.9,6.41661787]
[1765554525265,0.68484394,3120.1,3117.0,1.0409]
[1765554525594,0.05,3120.3,3117.0,1.0409]
[1765554525595,22.01401725,3119.6,3117.1,0.6616]
[1765554525806,0.405504,3119.2,3117.1,0.6616]
[1765554525959,0.58047529,3118.8,3117.1,0.6616]
[1765554526163,0.4635,3119.5,3117.1,0.6616]
[1765554526164,0.4635,3119.2,3117.2,0.567]
[1765554526386,0.4635,3119.2,3117.4,0.58047529]
[1765554526809,0.4635,3119.2,3117.5,1.66199966]
[1765554527206,0.4635,3119.2,3117.6,0.4739]
[1765554527611,0.1984,3119.1,3117.3,9.62371281]
[1765554527813,10.28736929,3119.1,3117.3,6.41580854]
[1765554527999,0.405504,3118.7,3117.3,3.20790427]
[1765554528179,12.38374,3118.3,3117.3,3.20790427]
[1765554528383,0.58047529,3118.4,3117.2,0.567]
[1765554528580,0.1984,3117.3,3117.2,0.567]
[1765554529008,0.1984,3117.3,3116.4,0.002]
[1765554529009,0.6619,3117.3,3116.4,0.002]
[1765554529220,0.6619,3117.3,3116.4,0.569]
[1765554529587,0.6619,3117.3,3116.6,3.20861857]
[1765554529790,0.6619,3117.3,3116.4,0.569]
[1765554529791,0.4635,3117.2,3116.4,0.569]
[1765554530292,0.4635,3117.2,3116.4,0.002]
[1765554530498,3.661838,3118.3,3116.5,0.6784]
[1765554530817,0.58047529,3118.0,3116.6,1.03068921]
[1765554531019,0.58047529,3117.6,3116.4,6.4196614]
[1765554531194,6.199771,3117.5,3116.4,6.4196614]
[1765554531395,6.197979,3117.5,3116.4,6.4196614]
[1765554531607,17.915392,3117.2,3116.4,0.002]
[1765554531912,11.50780529,3116.5,3116.4,0.002]
[1765554532108,0.1861,3116.5,3116.4,0.002]
[1765554532317,0.1861,3116.9,3116.4,0.002]
[1765554532622,0.405504,3117.8,3116.4,0.002]
[1765554532623,0.1861,3117.7,3116.4,0.002]
[1765554533327,0.6846,3117.7,3116.5,0.567]
[1765554533636,3.399016,3117.6,3116.5,0.567]
[1765554533790,9.615887,3117.4,3116.5,0.567]
[1765554534191,0.4985,3117.3,3116.5,0.567]
[1765554534401,0.4985,3117.3,3116.4,0.002]
[1765554534402,0.405504,3117.2,3116.4,0.002]
[1765554534623,0.58047529,3117.1,3116.4,0.002]
[1765554534927,15.193574,3117.0,3116.4,0.002]
[1765554535125,2.157248,3117.0,3116.4,0.002]
[1765554535324,10.820346,3116.9,3116.4,0.002]
[1765554535534,0.4985,3116.8,3116.4,0.002]
[1765554536226,26.97393329,3116.5,3116.4,0.002]
[1765554536426,0.1857,3115.9,3115.4,0.567]
[1765554536626,0.1857,3115.9,3114.4,3.21082558]
[1765554536627,4.570714,3115.8,3114.4,3.21082558]
[1765554536827,0.4985,3115.8,3115.1,3.21016723]
[1765554537032,0.4985,3115.8,3114.5,0.88808256]
[1765554537195,0.07244417,3117.2,3115.4,6.41972138]
[1765554537196,0.4985,3116.2,3115.4,6.41972138]
[1765554537548,0.1857,3116.3,3115.5,0.567]
[1765554538626,0.1857,3116.3,3115.6,3.20965464]
[1765554538826,0.1857,3116.3,3114.2,0.4963]
[1765554538827,11.039023,3116.1,3114.2,0.4963]
[1765554539005,17.105811,3115.9,3114.9,3.21035163]
[1765554539201,1.1537523,3116.0,3115.0,3.21026222]
[1765554539402,0.4985,3116.2,3115.5,3.20975604]
[1765554539933,0.4985,3116.2,3115.4,3.20982423]
[1765554540109,0.4985,3116.2,3115.3,3.20996275]
[1765554540299,0.4985,3116.2,3114.4,3.21082465]
[1765554540300,0.405504,3115.9,3114.0,0.1877]
[1765554540629,0.98597929,3115.3,3112.7,3.2125828]
[1765554540838,0.405504,3114.9,3112.8,0.9663695]
[1765554541039,0.405504,3114.5,3113.2,3.21205085]
[1765554541336,0.58047529,3114.3,3112.8,0.567]
[1765554541547,0.4985,3114.4,3112.9,0.03212438]
[1765554542061,0.405504,3115.1,3112.9,0.03212438]
[1765554542062,1.58490503,3116.0,3114.3,0.1821]
[1765554542228,0.4985,3115.9,3114.4,0.566]
[1765554542426,14.407229,3115.4,3114.2,0.002]
[1765554542623,30.0,3115.0,3114.2,0.002]
[1765554542869,30.0,3115.0,3112.6,0.4983]
[1765554542870,38.82913825,3114.7,3112.6,0.002]
[1765554543166,7.905901,3114.2,3113.6,0.002]
[1765554543325,0.98597929,3113.9,3113.6,0.002]
[1765554543526,0.58047529,3113.3,3112.6,0.002]
[1765554543744,0.58047529,3113.3,3112.3,0.568]
[1765554543745,0.405504,3112.6,3112.3,0.002]
[1765554543949,0.405504,3112.6,3112.0,0.002]
[1765554543950,23.64378729,3112.4,3112.0,0.002]
[1765554544161,19.810639,3112.0,3110.2,0.4963]
[1765554544334,0.405504,3111.9,3110.2,1.0623]
[1765554544535,0.58047529,3111.7,3110.2,3.78120017]
[1765554544726,0.52094417,3112.3,3110.3,0.4963]
[1765554544927,0.02244417,3112.3,3110.3,0.4963]
[1765554545326,0.02244417,3112.3,3110.6,8.42363425]
[1765554545557,0.02244417,3112.3,3110.8,0.405504]
[1765554545724,0.02244417,3112.3,3111.3,0.58047529]
[1765554545927,0.02244417,3112.3,3111.4,0.567]
[1765554546150,0.02244417,3112.3,3111.5,0.4963]
[1765554546365,0.02244417,3112.3,3111.0,0.1821]
[1765554546531,0.02244417,3112.3,3111.1,10.20989157]
[1765554546733,0.02244417,3112.3,3111.1,17.13478595]
[1765554546944,0.02244417,3112.3,3111.2,1.48227929]
[1765554547256,0.02244417,3112.3,3111.5,8.42363425]
[1765554547462,0.02244417,3113.5,3111.7,0.405504]
[1765554547631,0.4985,3114.1,3112.6,0.1821]
[1765554547956,0.4985,3114.1,3112.7,0.567]
[1765554548159,0.52094417,3114.8,3112.7,1.0633]
[1765554548460,0.52094417,3114.8,3112.9,12.84975424]
[1765554548762,0.52094417,3114.8,3113.0,1.92349824]
[1765554549064,0.58047529,3114.4,3113.1,0.567]
[1765554549306,7.452709,3114.5,3113.1,0.567]
[1765554549490,1.07897529,3114.4,3113.1,0.567]
[1765554549797,0.6947,3115.0,3113.1,1.0633]
[1765554549999,0.02244417,3115.3,3113.2,0.87915511]
[1765554550302,0.02244417,3115.3,3113.2,1.37545511]
[1765554550599,6.345793,3115.0,3113.4,9.63576795]
[1765554550763,0.4985,3115.2,3113.4,12.8476906]
[1765554550969,0.4985,3115.2,3113.4,9.63576795]
[1765554551202,0.4985,3115.2,3113.5,1.01320679]
[1765554551369,0.4985,3115.2,3113.5,1.50950679]
[1765554551801,6.534454,3115.1,3113.5,1.50950679]
[1765554551988,2.876246,3115.1,3113.5,1.50950679]
[1765554552193,0.02244417,3115.3,3113.6,0.4963]
[1765554552372,0.02244417,3115.3,3113.7,0.20899821]
[1765554552574,8.882051,3115.2,3113.8,6.4230201]
[1765554552888,0.58047529,3115.0,3113.8,3.21151005]
[1765554553100,0.4985,3115.1,3113.9,0.566]
[1765554553300,0.1962,3115.4,3113.9,0.566]
[1765554553610,0.4985,3115.8,3114.0,1.02005302]
[1765554553926,0.4985,3116.6,3114.7,7.03368062]
[1765554554085,0.4985,3116.6,3114.8,0.566]
[1765554554285,0.4985,3116.6,3114.8,1.0623]
[1765554554482,0.4985,3116.6,3114.9,9.63112779]
[1765554554694,0.4985,3116.6,3115.0,1.06934278]
[1765554554884,0.1922,3117.0,3115.2,7.03368062]
[1765554555085,6.965791,3117.3,3115.3,1.07677529]
[1765554555285,0.58047529,3117.2,3115.3,0.4963]
[1765554555515,19.999814,3117.1,3115.3,0.4963]
[1765554555720,2.891207,3116.9,3115.3,0.4963]
[1765554555890,0.4985,3117.1,3115.3,0.4963]
[1765554556082,13.197015,3117.4,3115.4,0.405504]
[1765554556282,0.4985,3117.7,3115.4,0.405504]
[1765554556511,0.4985,3117.7,3115.8,13.41826973]
[1765554556762,0.4985,3117.7,3115.9,0.566]
[1765554556763,3.89819888,3117.7,3115.9,0.566]
[1765554556983,0.6907,3117.7,3115.9,0.566]
[1765554557216,0.4909,3117.6,3115.9,1.0623]
[1765554557384,22.616227,3117.5,3116.0,0.566]
[1765554557598,0.58047529,3117.2,3116.0,0.566]
[1765554557792,11.223385,3117.3,3116.0,0.566]
[1765554557793,2.1991,3117.1,3116.0,0.566]
[1765554557998,0.4909,3117.1,3116.0,0.566]
[1765554558210,6.77582629,3116.9,3116.0,0.566]
[1765554558410,0.58047529,3116.7,3116.0,0.566]
[1765554558621,1.30714792,3116.9,3116.0,3.77522431]
[1765554558622,1.21757263,3116.9,3116.0,3.77522431]
[1765554558821,0.02244417,3117.4,3116.0,3.77522431]
[1765554558822,0.58047529,3117.2,3116.0,3.77522431]
[1765554559025,0.02244417,3117.6,3116.1,0.4533]
[1765554559026,7.013697,3117.5,3116.1,0.4533]
[1765554559190,4.7758,3118.3,3116.3,0.58047529]
[1765554559391,0.58047529,3118.2,3116.3,0.58047529]
[1765554559690,0.1887,3118.9,3116.7,7.03368062]
[1765554559890,8.162326,3118.8,3116.8,1.26936806]
[1765554560109,0.4909,3118.7,3117.0,0.405504]
[1765554560313,0.1887,3118.9,3116.9,0.4709]
[1765554560530,6.68397117,3118.7,3116.9,0.4709]
[1765554560685,6.68397117,3118.7,3117.0,6.41642604]
[1765554560686,0.58047529,3118.3,3117.0,6.41642604]
[1765554560890,0.98597929,3118.3,3116.7,3.20849349]
[1765554561121,0.02244417,3117.9,3116.8,0.566]
[1765554561321,0.02244417,3117.9,3116.9,6.41660083]
[1765554561501,0.02244417,3117.9,3116.9,10.09581678]
[1765554561821,0.02244417,3118.3,3116.9,9.62491678]
[1765554561998,0.4733,3118.2,3116.9,6.41660083]
[1765554562198,0.4733,3118.2,3116.9,7.11486091]
[1765554562525,0.02244417,3118.5,3117.0,1.05137529]
[1765554562701,0.02244417,3118.5,3117.1,12.8324404]
[1765554562900,0.1887,3118.9,3117.2,0.98597929]
[1765554563195,0.1887,3118.9,3117.2,1.45687929]
[1765554563405,0.1887,3118.9,3117.3,2.60320003]
[1765554563590,3.86830257,3118.9,3117.3,2.60320003]
[1765554563792,3.86830257,3118.9,3117.4,0.565]
[1765554563793,7.07460514,3118.9,3117.4,0.565]
[1765554564092,0.58047529,3118.7,3117.4,0.565]
[1765554564290,0.58047529,3118.5,3117.4,0.565]
[1765554564487,0.4733,3118.6,3117.4,0.565]
[1765554564689,0.4733,3118.5,3116.9,0.69826008]
[1765554564891,0.4733,3118.5,3117.0,3.20819706]
[1765554565119,0.02244417,3118.3,3117.1,0.565]
[1765554565423,0.02244417,3118.3,3117.4,3.20779573]
[1765554565589,0.02244417,3118.3,3117.4,6.4155971]
[1765554565795,0.02244417,3118.3,3117.5,0.1898]
[1765554565994,0.02244417,3118.3,3117.4,3.20779573]
[1765554566394,0.02244417,3118.3,3117.4,6.4155971]
[1765554566729,0.02244417,3118.6,3117.3,6.41580854]
[1765554566926,0.02244417,3118.6,3117.3,11.16057796]
[1765554567112,0.02244417,3118.6,3117.3,10.68967796]
[1765554567445,3.39499258,3118.9,3117.4,0.4709]
[1765554567446,0.1887,3118.9,3117.4,0.4709]
[1765554567729,7.228061,3118.8,3117.3,3.20790427]
[1765554567892,0.02244417,3118.7,3117.3,6.41580854]
[1765554568119,0.47180639,3118.7,3117.4,0.4709]
[1765554568314,0.4733,3118.6,3117.2,3.20798295]
[1765554568554,0.4733,3118.6,3117.2,6.41599013]
[1765554568917,0.4733,3118.6,3117.1,1.0359]
[1765554568918,0.58047529,3118.4,3117.1,0.565]
[1765554569121,1.00842346,3118.5,3117.1,0.565]
[1765554569320,0.98597929,3118.0,3117.1,0.565]
[1765554569534,0.58047529,3117.7,3117.1,0.565]
[1765554569849,1.11014886,3118.4,3117.1,3.77310297]
[1765554570052,1.07621946,3118.5,3117.2,6.41601436]
[1765554570243,1.07621946,3118.5,3117.2,3.20800718]
[1765554570244,0.49574417,3118.5,3117.2,3.20800718]
[1765554570447,2.275863,3118.6,3117.1,3.77310905]
[1765554570659,10.521954,3118.1,3116.6,3.20853327]
[1765554570822,4.125467,3117.8,3116.9,0.565]
[1765554571017,0.4733,3118.0,3116.9,0.565]
[1765554571315,0.84358371,3118.0,3116.9,0.565]
[1765554571527,2.89547229,3117.9,3116.9,0.565]
[1765554571803,2.89547229,3117.9,3116.1,9.62737341]
[1765554571804,0.58047529,3117.6,3116.5,0.565]
[1765554571939,5.939088,3117.8,3116.5,0.565]
[1765554572129,6.021049,3117.9,3116.6,0.03208624]
[1765554572334,0.02244417,3118.2,3116.5,1.0359]
[1765554572531,0.02244417,3118.2,3116.6,0.4709]
[1765554572758,0.02244417,3118.2,3116.8,0.58047529]
[1765554572922,0.02244417,3118.2,3116.7,12.83408732]
[1765554573123,0.58047529,3118.5,3116.8,0.4709]
[1765554573322,0.58047529,3118.6,3116.8,0.4709]
[1765554573527,10.512335,3118.4,3116.8,0.4709]
[1765554573751,3.56274017,3118.4,3116.8,0.4709]
[1765554573927,0.02244417,3118.4,3116.8,0.4709]
[1765554574853,0.02244417,3118.4,3116.9,9.62494785]
[1765554575051,3.22923363,3118.4,3117.0,0.58047529]
[1765554575250,0.37025336,3118.3,3117.0,0.58047529]
[1765554575453,0.49574417,3118.4,3117.0,0.58047529]
[1765554575664,0.49574417,3118.4,3117.0,1.05137529]
[1765554575869,0.49574417,3118.4,3116.9,6.4166319]
[1765554575870,4.641489,3118.2,3116.9,6.4166319]
[1765554576162,3.70251687,3118.4,3116.9,6.4166319]
[1765554576163,3.689446,3118.3,3116.9,6.4166319]
[1765554576359,3.322087,3118.3,3116.9,6.4166319]
[1765554576560,0.65513039,3118.2,3116.9,6.4166319]
[1765554576768,1.12843039,3118.2,3116.9,6.4166319]
[1765554576960,1.12843039,3118.2,3116.9,9.62494785]
[1765554577260,0.1887,3118.9,3117.0,1.05137529]
[1765554577559,0.1887,3118.9,3117.1,0.405504]
[1765554577759,0.1887,3118.9,3117.1,0.876404]
[1765554578135,0.1887,3118.9,3117.2,0.4709]
[1765554578335,0.001,3119.0,3117.5,0.98597929]
[1765554578530,0.001,3119.0,3118.9,0.1613]
[1765554578834,0.001,3119.0,3118.9,0.564]
[1765554579039,0.001,3119.0,3118.9,3.77025861]
[1765554579232,0.001,3119.0,3118.9,3.96005861]
[1765554579438,0.001,3119.0,3118.9,4.43095861]
[1765554579633,0.001,3119.0,3118.9,3.77025861]
[1765554580153,0.001,3119.0,3118.9,3.20625861]
[1765554581346,0.001,3119.0,3118.9,5.14509694]
[1765554581771,0.001,3119.0,3118.9,3.39605861]
[1765554582088,0.001,3119.0,3118.9,3.20625861]
[1765554582436,0.001,3119.0,3118.8,3.77034945]
[1765554583566,0.001,3119.0,3118.8,0.564]
[1765554583874,0.4743,3119.0,3118.8,0.564]
[1765554584648,0.001,3119.0,3118.8,0.564]
[1765554584962,0.001,3119.0,3118.8,3.77035887]
[1765554585381,0.001,3119.0,3118.8,0.564]
[1765554585877,0.001,3119.0,3118.8,3.77036035]
[1765554589350,0.001,3119.0,3118.8,0.564]
[1765554589551,0.001,3119.0,3118.8,3.7703587]
[1765554589753,0.4743,3119.0,3118.6,0.563]
[1765554590476,0.4743,3119.0,3118.7,3.20638743]
[1765554590686,0.4743,3119.0,3118.8,3.20630942]
[1765554590887,0.001,3119.0,3118.7,3.20642187]
[1765554591081,0.4941,3119.0,3118.6,0.563]
[1765554591386,0.4941,3119.0,3118.6,3.76953826]
[1765554591965,0.001,3119.0,3118.6,6.9761053]
[1765554592152,0.001,3119.0,3118.6,10.36567234]
[1765554592357,0.001,3119.0,3118.6,10.82877234]
[1765554592765,0.001,3119.0,3118.6,3.76953826]
[1765554593154,0.4941,3119.0,3118.6,0.563]
[1765554593370,0.4941,3119.0,3118.4,3.20673259]
[1765554593573,0.4941,3119.0,3118.3,3.20680808]
[1765554593779,0.4941,3119.0,3118.3,3.20686626]
[1765554593981,0.4941,3119.0,3118.4,3.20676546]
[1765554594185,0.001,3119.0,3118.6,6.41312499]
[1765554594386,0.001,3119.0,3118.7,0.563]
[1765554595085,0.001,3119.0,3118.7,3.76945299]
[1765554595587,0.001,3119.0,3118.7,0.563]
[1765554595790,0.001,3119.0,3118.7,6.97591463]
[1765554595981,0.001,3119.0,3118.7,8.01246986]
[1765554596163,0.001,3119.0,3118.7,6.97591463]
[1765554596483,0.001,3119.0,3118.7,3.7694504]
[1765554596887,0.001,3119.0,3118.7,6.97591463]